fUST/lending_fUST_20240607
["ID","MTS","AMOUNT","RATE_DAILY","PERIOD"]
[328740460,1717753832962,-2641.73909648,0.00017794,2]
[328740461,1717753832971,-9758.95097689,0.00017898,2]
[328740462,1717753832984,-476.14397417,0.00017898,2]
[328740463,1717753833016,-248.8696713,0.00017898,2]
[328740465,1717753833025,-213.3583287,0.00018,2]
[328740474,1717753838779,-280.86267126,0.00018,2]
[328740475,1717753838791,-138.29995727,0.00018,2]
[328740476,1717753838800,-862.14658379,0.00018138,2]
[328740477,1717753838812,-1901.0750489,0.00018138,2]
[328740478,1717753838823,-606.38712645,0.00018899,2]
[328740479,1717753838833,-186.00439292,0.000189,2]
[328740480,1717753838844,-963.94738268,0.00018984,2]
[328740481,1717753838854,-163.02245069,0.00019075,2]
[328740482,1717753838865,-894.15013305,0.00019076,2]
[328740483,1717753838874,-298.62,0.00019166,3]
[328740484,1717753838883,-895.88,0.00019166,3]
[328740485,1717753838894,-5522.94342406,0.00019175,2]
[328740494,1717753843440,-7832.475985,0.00019175,2]
[328740495,1717753844851,-750.58268264,0.00019175,2]
[328740496,1717753844863,-674.10124042,0.00019175,2]
[328740524,1717753847260,-33646.39647975,0.00019175,2]
[328740525,1717753847272,-1910.2758699,0.00019175,2]
[328740526,1717753847284,-2757.00558588,0.00019175,2]
[328740527,1717753847294,-241.27693457,0.00019176,2]
[328740528,1717753847303,-173.25634763,0.00019176,2]
[328740529,1717753847313,-442.75883193,0.00019176,2]
[328740530,1717753847323,-270.0388831,0.00019176,2]
[328740531,1717753847332,-2208.56341689,0.00019176,2]
[328740532,1717753858200,8599.27075772,0.0001,10]
[328740533,1717753891932,945.46842875,0.00015,2]
[328740534,1717753927356,238.8015218,9.999e-05,2]
[328740535,1717753964410,-223.0,0.00025302,35]
[328740536,1717753964437,-1704.0,0.00025302,35]
[328740537,1717753964463,-223.0,0.00025312,35]
[328740538,1717753964491,-1704.0,0.00025312,35]
[328740539,1717753964518,-223.0,0.00025322,35]
[328740540,1717753964548,-1704.0,0.00025322,35]
[328740541,1717753964576,-237.18,0.00025354,35]
[328740542,1717753964602,-150.5,0.00025364,35]
[328740543,1717753964630,-150.5,0.00025374,35]
[328740544,1717753964658,-150.5,0.00025468,35]
[328740545,1717753964683,-223.0,0.00025469,35]
[328740546,1717753964711,-1704.0,0.00025469,35]
[328740547,1717753964837,-150.5,0.0002547,35]
[328740548,1717753964898,-152.0,0.0002547,35]
[328740549,1717753964924,-266.0,0.0002547,35]
[328740550,1717753964950,-266.0,0.00025478,35]
[328740551,1717753964976,-152.0,0.00025478,35]
[328740552,1717753965001,-150.5,0.00025478,35]
[328740553,1717753965026,-170.4,0.00025478,35]
[328740554,1717753965051,-223.0,0.00025479,35]
[328740555,1717753965076,-223.0,0.00025479,35]
[328740556,1717753965101,-1704.0,0.00025479,35]
[328740557,1717753965126,-1704.0,0.00025479,35]
[328740558,1717753965151,-150.5,0.0002548,35]
[328740559,1717753965178,-152.0,0.0002548,35]
[328740560,1717753965208,-266.0,0.0002548,35]
[328740561,1717753965234,-266.0,0.00025488,35]
[328740562,1717753965261,-152.0,0.00025488,35]
[328740563,1717753965289,-150.5,0.00025488,35]
[328740564,1717753965316,-150.5,0.00025488,35]
[328740565,1717753965341,-223.0,0.00025489,35]
[328740566,1717753965366,-223.0,0.00025489,35]
[328740567,1717753965392,-1704.0,0.00025489,35]
[328740568,1717753965419,-1704.0,0.00025489,35]
[328740569,1717753965445,-150.5,0.0002549,35]
[328740570,1717753965471,-194.71,0.0002549,35]
[328740571,1717753965497,-152.0,0.0002549,35]
[328740572,1717753965522,-266.0,0.0002549,35]
[328740573,1717753965551,-480537.21,0.000255,60]
[328740574,1717753968904,-500000.0,0.000255,60]
[328740575,1717753972631,-500000.0,0.000255,60]
[328740576,1717753997919,-150.5,0.0002547,35]
[328740577,1717753997945,-236.39,0.0002547,35]
[328740578,1717753997973,-150.5,0.0002547,35]
[328740579,1717753998002,-341.0,0.0002547,35]
[328740580,1717753998027,-150.5,0.0002547,35]
[328740581,1717753998054,-150.5,0.0002547,35]
[328740582,1717753999481,-150.5,0.0002547,35]
[328740583,1717753999513,-341.0,0.0002547,35]
[328740584,1717753999545,-150.5,0.0002548,35]
[328740585,1717753999571,-150.5,0.0002548,35]
[328740587,1717753999598,-341.0,0.0002548,35]
[328740588,1717753999623,-150.5,0.0002548,35]
[328740589,1717753999650,-150.5,0.0002548,35]
[328740591,1717753999676,-150.5,0.0002548,35]
[328740593,1717753999704,-341.0,0.0002548,35]
[328740595,1717753999731,-256.95,0.0002548,35]
[328740596,1717753999757,-150.5,0.0002548,35]
[328740597,1717753999788,-341.0,0.0002548,35]
[328740598,1717753999813,-223.81,0.0002549,35]
[328740599,1717753999840,-150.5,0.0002549,35]
[328740600,1717753999868,-150.5,0.0002549,35]
[328740601,1717753999895,-341.0,0.0002549,35]
[328740602,1717753999921,-150.5,0.0002549,35]
[328740603,1717753999956,-150.5,0.0002549,35]
[328740604,1717753999983,-150.5,0.0002549,35]
[328740605,1717754000011,-341.0,0.0002549,35]
[328740606,1717754000036,-150.5,0.0002549,35]
[328740607,1717754000062,-150.5,0.0002549,35]
[328740608,1717754000090,-341.0,0.0002549,35]
[328740609,1717754000120,-370754.22636981,0.000255,60]
[328740610,1717754000149,-123091.62363019,0.00025593,30]
[328740611,1717754005186,-500000.0,0.00025593,30]
[328740612,1717754009228,-500000.0,0.00025593,30]
[328740613,1717754013113,-500000.0,0.00025593,30]
[328740614,1717754018532,-4270591.50198095,0.00025593,30]
[328740615,1717754018563,-150.5,0.0002587,35]
[328740616,1717754018596,-150.5,0.0002588,35]
[328740617,1717754018625,-150.5,0.0002589,35]
[328740618,1717754018654,-150.5,0.0002622,35]
[328740619,1717754018680,-150.5,0.0002629,35]
[328740620,1717754018714,-344.85,0.0002697,35]
[328740621,1717754018740,-204.6,0.0002698,35]
[328740622,1717754018770,-341.0,0.0002698,35]
[328740623,1717754018796,-727765.54801905,0.00027,30]
[328740624,1717754022794,-5000000.0,0.00027,30]
[328740627,1717754042811,-5000000.0,0.00027,30]
[328740628,1717754046341,-5000000.0,0.00027,30]
[328740630,1717754057634,-4272234.45198095,0.00027,30]
[328740631,1717754057663,-155.42906197,0.00027,30]
[328740632,1717754057691,-500.0,0.00027397,60]
[328740633,1717754057715,-500.0,0.00027397,60]
[328740634,1717754057742,-509.0789891,0.00027397,60]
[328740635,1717754057767,-445.79165549,0.00027397,60]
[328740636,1717754057795,-500.0,0.00027397,60]
[328740637,1717754057823,-500.0,0.00027397,60]
[328740638,1717754057852,-462.93953546,0.00027397,60]
[328740639,1717754057877,-500.0,0.00027397,60]
[328740640,1717754057904,-500.0,0.00027397,60]
[328740641,1717754057930,-292.58452767,0.00027397,60]
[328740642,1717754057957,-500.0,0.00027397,60]
[328740643,1717754057984,-500.0,0.00027397,60]
[328740644,1717754058009,-500.0,0.00027397,60]
[328740645,1717754058035,-500.0,0.00027397,60]
[328740646,1717754058061,-500.0,0.00027397,60]
[328740647,1717754059437,-500.0,0.00027397,60]
[328740648,1717754059468,-500.0,0.00027397,60]
[328740649,1717754059495,-500.0,0.00027397,60]
[328740650,1717754059523,-500.0,0.00027397,60]
[328740651,1717754059551,-500.0,0.00027397,60]
[328740652,1717754059583,-310.58742665,0.00027397,60]
[328740653,1717754059610,-500.0,0.00027397,60]
[328740654,1717754059639,-500.0,0.00027397,60]
[328740655,1717754059669,-500.0,0.00027397,60]
[328740656,1717754059696,-505.80012651,0.00027397,60]
[328740657,1717754059725,-2526.4,0.00027397,60]
[328740658,1717754059754,-2526.4,0.00027397,60]
[328740659,1717754059782,-2526.4,0.00027397,60]
[328740660,1717754059810,-2526.4,0.00027397,60]
[328740661,1717754059838,-2526.4,0.00027397,60]
[328740662,1717754059866,-2526.4,0.00027397,60]
[328740663,1717754059893,-2526.4,0.00027397,60]
[328740664,1717754059920,-2526.4,0.00027397,60]
[328740665,1717754059947,-2526.4,0.00027397,60]
[328740666,1717754059973,-2526.4,0.00027397,60]
[328740667,1717754059999,-2526.4,0.00027397,60]
[328740668,1717754060024,-2526.4,0.00027397,60]
[328740669,1717754060166,-2526.4,0.00027397,60]
[328740670,1717754060191,-2526.4,0.00027397,60]
[328740671,1717754060216,-2526.4,0.00027397,60]
[328740672,1717754060241,-2526.4,0.00027397,60]
[328740673,1717754060266,-2526.4,0.00027397,60]
[328740674,1717754060291,-2526.4,0.00027397,60]
[328740675,1717754060316,-2526.4,0.00027397,60]
[328740676,1717754060341,-2526.4,0.00027397,60]
[328740677,1717754060367,-2526.4,0.00027397,60]
[328740678,1717754060395,-2526.4,0.00027397,60]
[328740679,1717754060425,-2526.4,0.00027397,60]
[328740680,1717754060453,-2526.47579012,0.00027397,60]
[328740681,1717754060479,-527.91680479,0.00027397,60]
[328740682,1717754060508,-1010.34,0.00027397,60]
[328740683,1717754060536,-1010.34,0.00027397,60]
[328740684,1717754060567,-1010.34,0.00027397,60]
[328740685,1717754060595,-1010.34,0.00027397,60]
[328740686,1717754060625,-1010.34,0.00027397,60]
[328740687,1717754060654,-1010.34,0.00027397,60]
[328740688,1717754060682,-1010.34,0.00027397,60]
[328740689,1717754060710,-1010.34,0.00027397,60]
[328740690,1717754060739,-1010.34,0.00027397,60]
[328740691,1717754060767,-1010.34,0.00027397,60]
[328740692,1717754060795,-1010.34,0.00027397,60]
[328740693,1717754060822,-1010.34,0.00027397,60]
[328740694,1717754060849,-1010.34,0.00027397,60]
[328740695,1717754060878,-1010.34,0.00027397,60]
[328740696,1717754060905,-1010.34,0.00027397,60]
[328740697,1717754060932,-1010.34,0.00027397,60]
[328740698,1717754060960,-1010.34,0.00027397,60]
[328740699,1717754060987,-1010.34,0.00027397,60]
[328740700,1717754061012,-1010.34,0.00027397,60]
[328740701,1717754061040,-1010.34,0.00027397,60]
[328740702,1717754061066,-1010.34,0.00027397,60]
[328740703,1717754061092,-1010.34,0.00027397,60]
[328740704,1717754061119,-1010.34,0.00027397,60]
[328740705,1717754061145,-1010.37328215,0.00027397,60]
[328740706,1717754061170,-1001.21,0.00027397,60]
[328740707,1717754061195,-1001.21,0.00027397,60]
[328740708,1717754061219,-1001.21,0.00027397,60]
[328740709,1717754061244,-1001.21,0.00027397,60]
[328740710,1717754061268,-1001.21,0.00027397,60]
[328740711,1717754061296,-1001.21,0.00027397,60]
[328740712,1717754061322,-1001.21,0.00027397,60]
[328740713,1717754061347,-1001.21,0.00027397,60]
[328740714,1717754061372,-1001.21,0.00027397,60]
[328740715,1717754061396,-1001.21,0.00027397,60]
[328740716,1717754061420,-1001.21,0.00027397,60]
[328740717,1717754061449,-1001.21,0.00027397,60]
[328740718,1717754061476,-1001.21,0.00027397,60]
[328740719,1717754061501,-1001.21,0.00027397,60]
[328740720,1717754061528,-1001.21,0.00027397,60]
[328740721,1717754061553,-1001.21,0.00027397,60]
[328740722,1717754061582,-1001.21,0.00027397,60]
[328740723,1717754061607,-1001.21,0.00027397,60]
[328740724,1717754061636,-1001.21,0.00027397,60]
[328740725,1717754061663,-1001.21,0.00027397,60]
[328740726,1717754061688,-1001.21,0.00027397,60]
[328740727,1717754061714,-1001.21,0.00027397,60]
[328740728,1717754061742,-1001.21,0.00027397,60]
[328740729,1717754061768,-1001.44,0.00027397,60]
[328740730,1717754061798,-4346.91698508,0.000275,30]
[328740731,1717754061825,-167.023463,0.00027671,35]
[328740732,1717754061851,-167.023463,0.00027671,52]
[328740733,1717754061876,-167.023463,0.00027671,69]
[328740734,1717754061901,-167.023463,0.00027671,86]
[328740735,1717754061926,-167.023463,0.00027671,103]
[328740736,1717754061951,-167.023463,0.00027671,119]
[328740737,1717754061980,-1207.5169932,0.00028134,30]
[328740738,1717754062007,-60632.567,0.00028326,30]
[328740739,1717754062040,-229.45148045,0.00029,30]
[328740740,1717754062066,-509.84507177,0.00029,60]
[328740741,1717754062096,-3865.0,0.00029655,40]
[328740742,1717754062123,-4745.03271185,0.00029695,30]
[328740743,1717754062150,-4745.03271185,0.00029709,30]
[328740744,1717754062176,-4745.03271185,0.00029716,30]
[328740745,1717754062202,-4745.03271185,0.00029738,30]
[328740746,1717754062228,-13722.70754922,0.0002975,30]
[328740747,1717754062255,-13722.70754922,0.0002977,30]
[328740748,1717754062281,-4745.03271185,0.00029773,30]
[328740749,1717754062308,-13722.70754922,0.00029775,30]
[328740750,1717754062334,-13722.70754922,0.00029791,30]
[328740751,1717754062360,-13722.70754922,0.00029794,30]
[328740752,1717754062723,-473.8032319,0.0003,30]
[328740753,1717754062752,-15600.0,0.0003,30]
[328740754,1717754062781,-500.0,0.0003,120]
[328740755,1717754062809,-200.0,0.00030057,30]
[328740756,1717754062835,-2000.0,0.000305,30]
[328740757,1717754062861,-316.27,0.00030656,30]
[328740758,1717754062888,-1503.0,0.00032,40]
[328740759,1717754062914,-509.71995854,0.00032876,30]
[328740760,1717754063368,420909.34801485,0.000255,60]
[328740769,1717754140201,2512.6365518,0.00015432,2]
[328740773,1717754145974,597.24,0.00010959,2]
[328740780,1717754182859,6002.0527302,0.00015293,2]
[328740781,1717754192087,7971.20646642,0.00015292,2]
[328740784,1717754302192,-272.44632851,0.00014577,2]
[328740785,1717754302213,-2686.52442558,0.00014578,2]
[328740786,1717754302235,-2120.4704466,0.00014578,2]
[328740787,1717754302256,-9585.69744994,0.00014578,2]
[328740788,1717754302276,-2036.10483651,0.00014579,2]
[328740789,1717754302297,-3070.8095879,0.00014579,2]
[328740790,1717754302319,-200.33886083,0.00014579,2]
[328740791,1717754302340,-317.3700773,0.0001458,2]
[328740792,1717754302361,-1441.62192764,0.0001458,2]
[328740793,1717754302381,-282.36642828,0.0001458,2]
[328740794,1717754302403,-1910.49735366,0.0001458,2]
[328740795,1717754302427,-520.791152,0.00014581,2]
[328740796,1717754302449,-154.95351395,0.00015,2]
[328740797,1717754302471,-154.95351395,0.00015234,2]
[328740798,1717754302494,-19301.54694971,0.00015235,2]
[328740799,1717754302518,-11093.31738993,0.00015236,2]
[328740800,1717754302541,-3000.0,0.00015239,2]
[328740801,1717754302567,-16928.79353358,0.00015292,2]
[328740802,1717754302592,-983.39440034,0.00016138,2]
[328740803,1717754302615,-199.2244375,0.00016244,2]
[328740804,1717754302716,43738.77738629,0.00014577,2]
[328740817,1717754715743,-515.43295454,0.00014988,2]
[328740818,1717754715765,-241.89760239,0.00014989,2]
[328740819,1717754715789,-275.50564015,0.000165,2]
[328740820,1717754732730,-272.44632851,0.000166,2]
[328740821,1717754732756,-282.36642828,0.000166,2]
[328740822,1717754732777,-1441.62192764,0.000166,2]
[328740823,1717754732799,-7916.02523066,0.00016601,2]
[328740824,1717754732824,-2812.99414958,0.00016602,2]
[328740825,1717754732848,-16241.70973825,0.00016602,2]
[328740826,1717754770895,-154.95351395,0.00016599,2]
[328740827,1717754770918,-2036.10483651,0.000166,2]
[328740828,1717754770942,-17808.94164954,0.00016601,2]
[328740840,1717755035120,-2686.52442558,0.00015,2]
[328740841,1717755035129,-149.17910084,0.00015,2]
[328740864,1717755040428,-1971.29134576,0.00015,2]
[328740866,1717755040438,-2362.396981,0.00015001,2]
[328740879,1717755040535,-13679.27441708,0.00015794,2]
[328740882,1717755040583,-32941.16455841,0.00015794,2]
[328740884,1717755040593,-42087.28805147,0.00015795,2]
[328740885,1717755040602,-1441.62192764,0.00015799,2]
[328740887,1717755040612,-2036.10483651,0.000158,2]
[328740889,1717755040621,-59558.09165776,0.00015801,2]
[328740891,1717755040631,-19301.54694971,0.00015802,2]
[328740893,1717755040641,-24900.0,0.00015803,2]
[328740895,1717755040650,-521.5832114,0.00016603,2]
[328740897,1717755040660,-260.395576,0.00016847,2]
[328740899,1717755040669,-929.0489554,0.0001716,2]
[328740901,1717755040679,-10483.96462236,0.00017898,2]
[328740903,1717755040688,-632.52095723,0.00018,2]
[328740905,1717755040698,-1193.46728587,0.00018639,2]
[328740907,1717755040708,-154.95351395,0.00018749,2]
[328740909,1717755040717,-4236.94913646,0.00018824,2]
[328740911,1717755040726,-536.71243319,0.000189,2]
[328740913,1717755040736,-163.02245069,0.00019172,2]
[328740915,1717755040745,-27274.92976773,0.00019173,2]
[328740916,1717755040755,-4477.62143974,0.00019176,2]
[328740918,1717755040764,-155.3526917,0.00019176,2]
[328740920,1717755040773,-155.10605643,0.00019176,2]
[328740922,1717755040783,-155.51907551,0.00019176,2]
[328740924,1717755040792,-195.55818135,0.00019176,2]
[328740926,1717755040801,-204.92192061,0.00019176,2]
[328740928,1717755040811,-256.46893408,0.00019176,2]
[328740930,1717755040820,-774.09027042,0.00019176,2]
[328740932,1717755040829,-500.0,0.00019178,2]
[328740934,1717755040843,-428.85203969,0.00019178,2]
[328740936,1717755040853,-540.04480208,0.00019178,2]
[328740938,1717755040862,-244.11756249,0.00019178,2]
[328740940,1717755040871,-423.04767853,0.00019178,2]
[328740942,1717755040882,-500.0,0.00019178,2]
[328740944,1717755040891,-731.41076324,0.00019178,2]
[328740946,1717755040900,-603.54462866,0.00019178,2]
[328740948,1717755040912,-731.41076324,0.00019178,2]
[328740950,1717755040921,-500.0,0.00019178,2]
[328740952,1717755040931,-731.41076324,0.00019178,2]
[328740954,1717755040940,-500.0,0.00019178,2]
[328740956,1717755040950,-731.41076324,0.00019178,2]
[328740958,1717755040959,-731.41076324,0.00019178,2]
[328740960,1717755040968,-500.0,0.00019178,2]
[328740962,1717755040978,-731.41076324,0.00019178,2]
[328740964,1717755040988,-731.41076324,0.00019178,2]
[328740965,1717755040997,-500.0,0.00019178,2]
[328740968,1717755041007,-731.41076324,0.00019178,2]
[328740969,1717755041016,-731.41076324,0.00019178,2]
[328740971,1717755041026,-500.0,0.00019178,2]
[328740973,1717755041035,-731.41076324,0.00019178,2]
[328740976,1717755041044,-500.0,0.00019178,2]
[328740977,1717755041054,-731.41076324,0.00019178,2]
[328740979,1717755041063,-355.48843356,0.00019178,2]
[328740981,1717755041073,-731.41076324,0.00019178,2]
[328740983,1717755041082,-731.41076324,0.00019178,2]
[328740985,1717755041092,-731.41076324,0.00019178,2]
[328740987,1717755041102,-731.41076324,0.00019178,2]
[328740989,1717755041111,-731.41076324,0.00019178,2]
[328740991,1717755041121,-731.41076324,0.00019178,2]
[328740993,1717755041130,-731.41076324,0.00019178,2]
[328740995,1717755041141,-731.41076324,0.00019178,2]
[328740997,1717755041150,-731.41076324,0.00019178,2]
[328740999,1717755041161,-731.41076324,0.00019178,2]
[328741001,1717755041170,-731.41076324,0.00019178,2]
[328741002,1717755041180,-731.41076324,0.00019178,2]
[328741003,1717755041189,-731.41076324,0.00019178,2]
[328741004,1717755041198,-731.41076324,0.00019178,2]
[328741005,1717755041208,-731.41076324,0.00019178,2]
[328741007,1717755041217,-731.41076324,0.00019178,2]
[328741008,1717755041227,-719.55004816,0.00019178,2]
[328741010,1717755041237,-719.55004816,0.00019178,2]
[328741012,1717755041246,-719.55004816,0.00019178,2]
[328741013,1717755041256,-719.55004816,0.00019178,2]
[328741014,1717755041265,-719.55004816,0.00019178,2]
[328741015,1717755041274,-719.55004816,0.00019178,2]
[328741016,1717755041283,-719.55004816,0.00019178,2]
[328741017,1717755041292,-719.55004816,0.00019178,2]
[328741018,1717755041302,-679.64605516,0.00019178,2]
[328741037,1717755044263,-272.44632851,0.00017897,2]
[328741039,1717755044273,-39.903993,0.00019178,2]
[328741041,1717755044283,-719.55004816,0.00019178,2]
[328741043,1717755044293,-719.55004816,0.00019178,2]
[328741045,1717755044302,-719.55004816,0.00019178,2]
[328741046,1717755044312,-719.55004816,0.00019178,2]
[328741047,1717755044321,-719.55004816,0.00019178,2]
[328741048,1717755044331,-719.55004816,0.00019178,2]
[328741049,1717755044340,-719.55004816,0.00019178,2]
[328741050,1717755044350,-719.55004816,0.00019178,2]
[328741051,1717755044360,-719.55004816,0.00019178,2]
[328741052,1717755044369,-697.96354672,0.00019178,2]
[328741053,1717755044378,-697.96354672,0.00019178,2]
[328741054,1717755044388,-697.96354672,0.00019178,2]
[328741055,1717755044397,-697.96354672,0.00019178,2]
[328741056,1717755044407,-697.96354672,0.00019178,2]
[328741057,1717755044416,-697.96354672,0.00019178,2]
[328741058,1717755044425,-697.96354672,0.00019178,2]
[328741059,1717755044434,-697.96354672,0.00019178,2]
[328741060,1717755044444,-697.96354672,0.00019178,2]
[328741061,1717755044454,-697.96354672,0.00019178,2]
[328741062,1717755044463,-697.96354672,0.00019178,2]
[328741063,1717755044472,-697.96354672,0.00019178,2]
[328741064,1717755044481,-697.96354672,0.00019178,2]
[328741065,1717755044490,-697.96354671,0.00019178,2]
[328741066,1717755044500,-697.96354671,0.00019178,2]
[328741067,1717755044509,-697.96354671,0.00019178,2]
[328741069,1717755044519,-167.860154,0.00019178,2]
[328741071,1717755044528,-169.1,0.00019529,3]
[328741073,1717755044537,-169.1,0.00019826,3]
[328741074,1717755044547,-2323.03456522,0.0002,2]
[328741076,1717755044556,-225.02004134,0.0002,2]
[328741078,1717755044565,-435.0,0.0002,2]
[328741080,1717755044574,-436.71835,0.0002,2]
[328741107,1717755307405,692.26255018,9.999e-05,2]
[328741108,1717755317656,522.98365817,9.999e-05,2]
[328741109,1717755525230,252.32412823,9.999e-05,2]
[328741110,1717755708126,927.1117103,9.999e-05,2]
[328741204,1717756238473,-1910.49735366,0.0001614,2]
[328741206,1717756238483,-180.0,0.0001614,2]
[328741208,1717756238494,-974.90216597,0.00016141,2]
[328741210,1717756238504,-1441.62192764,0.00016237,2]
[328741211,1717756238514,-3070.8095879,0.00016238,2]
[328741212,1717756238523,-1425.17823236,0.00016238,2]
[328741399,1717756519568,-430.802284,0.00014979,2]
[328741400,1717756519591,-853.03939525,0.00015193,2]
[328741401,1717756519613,-19301.54694971,0.00015291,2]
[328741402,1717756519641,-3000.0,0.00015294,2]
[328741403,1717756520280,57414.61137104,0.0001529,2]
[328741404,1717756580500,2112.86517201,9.999e-05,2]
[328741406,1717756615974,3081.87656697,0.000125,2]
[328741407,1717756627781,1500.82055846,9.999e-05,2]
[328741408,1717756628678,1342.59061452,9.999e-05,2]
[328741409,1717756633422,16185.40827819,9.999e-05,2]
[328741410,1717756651116,157.66978397,9.999e-05,2]
[328741411,1717756653734,487.8969721,0.00017898,7]
[328741412,1717756656314,3639.96681777,9.999e-05,2]
[328741413,1717756657808,300.16961376,9.999e-05,2]
[328741414,1717756673811,300.16961376,9.999e-05,2]
[328741415,1717756676315,3636.33674655,9.999e-05,2]
[328741416,1717756691834,300.16961376,9.999e-05,2]
[328741417,1717756695488,154.9690062,9.999e-05,2]
[328741418,1717756701674,155.93029492,9.999e-05,2]
[328741419,1717756708122,300.16961376,9.999e-05,2]
[328741420,1717756713633,155.37217126,9.999e-05,2]
[328741421,1717756714759,302.82630629,9.999e-05,2]
[328741422,1717756718026,411.42673703,9.999e-05,2]
[328741423,1717756727819,300.16961376,9.999e-05,2]
[328741424,1717756730323,3639.96681777,9.999e-05,2]
[328741425,1717756733480,154.9690062,9.999e-05,2]
[328741426,1717756735637,759.67615126,9.999e-05,2]
[328741427,1717756735924,16185.40827819,9.999e-05,2]
[328741428,1717756743830,300.16961376,9.999e-05,2]
[328741429,1717756745428,187.78108932,9.999e-05,2]
[328741430,1717756751925,2359.89525849,9.999e-05,2]
[328741431,1717756752338,3639.96681777,9.999e-05,2]
[328741432,1717756768328,3639.96681777,9.999e-05,2]
[328741433,1717756769955,296.50875695,9.999e-05,2]
[328741435,1717756788326,3639.96681777,9.999e-05,2]
[328741436,1717756806012,250.0,0.00013531,2]
[328741437,1717756810328,3639.96681777,9.999e-05,2]
[328741438,1717756830328,3639.96681777,9.999e-05,2]
[328741439,1717756848334,2383.14403671,9.999e-05,2]
[328741440,1717756863624,272.44632851,9.999e-05,2]
[328741441,1717756883706,317.3700773,9.999e-05,2]
[328741443,1717756922212,372.50592829,9.999e-05,2]
[328741444,1717757028948,3000.0,0.00013699,2]
[328741445,1717757066266,215.401142,0.00013699,2]
[328741446,1717757076688,243.94848605,0.00017897,7]
[328741447,1717757216105,1441.62192764,9.999e-05,2]
[328741448,1717757218530,154.9690062,9.999e-05,2]
[328741449,1717757274966,2789.1393778,0.00013342,2]
[328741450,1717757286200,-7916.02523066,0.00014284,2]
[328741451,1717757286359,-42083.97476934,0.00014285,2]
[328741452,1717757324675,-746.4094708,0.00014186,2]
[328741453,1717757324698,-19301.54694971,0.00014281,2]
[328741454,1717757324720,-3070.8095879,0.00014282,2]
[328741455,1717757324743,-26881.23399159,0.00014282,2]
[328741456,1717757338090,-46620.43897549,0.00014281,2]
[328741457,1717757338125,-15206.05405988,0.00014282,2]
[328741458,1717757338300,-2036.10483651,0.00014282,2]
[328741459,1717757338334,-2120.4704466,0.00014283,2]
[328741460,1717757338369,-1910.49735366,0.00014284,2]
[328741461,1717757338405,-17474.11688842,0.00014285,2]
[328741467,1717757360115,-954.77382872,0.00014292,2]
[328741468,1717757360138,-8310.74905848,0.00014497,2]
[328741471,1717757368138,1351.6315964,0.00014285,2]
[328741472,1717757390775,-209.46028812,0.00014285,2]
[328741473,1717757390811,-2093.42945296,0.00014285,2]
[328741476,1717757400538,303.15870369,9.999e-05,2]
[328741477,1717757400911,686.12053619,9.999e-05,2]
[328741478,1717757411154,284.4592241,0.000137,2]
[328741479,1717757426913,515.43295454,9.999e-05,2]
[328741549,1717757438833,-154.9690062,0.00014495,2]
[328741550,1717757438843,-282.36642828,0.00014999,2]
[328741551,1717757438853,-272.44632851,0.00014999,2]
[328741552,1717757438863,-288.47232011,0.00015,2]
[328741591,1717757443967,-2121.16113812,0.00015,2]
[328741592,1717757443978,-2812.99414958,0.00015,2]
[328741593,1717757443987,-157.08712556,0.00015,2]
[328741594,1717757443997,-190.4326803,0.000156,2]
[328741595,1717757444006,-4236.94913646,0.00015961,2]
[328741596,1717757444016,-746.4094708,0.00016002,2]
[328741597,1717757444026,-24900.0,0.00016304,2]
[328741598,1717757444035,-275.50564015,0.00016943,2]
[328741599,1717757444044,-954.77382868,0.00016944,2]
[328741600,1717757444054,-746.4094708,0.00017819,2]
[328741601,1717757444064,-4116.32223958,0.00017898,2]
[328741602,1717757444080,-6367.64238278,0.00017898,2]
[328741603,1717757444090,-1139.07338121,0.00018671,2]
[328741605,1717757444100,-357.80828879,0.000189,2]
[328741607,1717757444110,-163.02245069,0.00019,2]